[Event "*** Titled Tuesday Blitz"]
[Site "Chess.com"]
[Date "2020.04.07"]
[Round "5"]
[White "tacticthunder"]
[Black "RestartingChess"]
[Result "1-0"]
[WhiteElo "2536"]
[BlackElo "2364"]
[TimeControl "180+1"]
[EndTime "13:55:58 PDT"]
[Termination "tacticthunder won by checkmate"]

1. e4 {[%clk 0:03:00]} 1... d5 {[%clk 0:03:00.3]} 2. exd5 {[%clk 0:03:00]} 2...
Qxd5 {[%clk 0:03:01.2]} 3. Nc3 {[%clk 0:03:00]} 3... Qd6 {[%clk 0:03:01.8]} 4.
d4 {[%clk 0:03:00.1]} 4... Nc6 {[%clk 0:03:01.7]} 5. Be3 {[%clk 0:02:58.1]} 5...
Nf6 {[%clk 0:03:01.4]} 6. Be2 {[%clk 0:02:57.6]} 6... Bf5 {[%clk 0:03:00.9]} 7.
Nf3 {[%clk 0:02:57.7]} 7... e6 {[%clk 0:03:00.9]} 8. O-O {[%clk 0:02:57.5]} 8...
Be7 {[%clk 0:03:01.1]} 9. Nb5 {[%clk 0:02:56.7]} 9... Qd7 {[%clk 0:02:56.9]} 10.
c4 {[%clk 0:02:57]} 10... a6 {[%clk 0:02:55.3]} 11. Nc3 {[%clk 0:02:57.3]} 11...
O-O {[%clk 0:02:55.7]} 12. h3 {[%clk 0:02:57.6]} 12... Rad8 {[%clk 0:02:54.6]}
13. Qb3 {[%clk 0:02:55.5]} 13... Na5 {[%clk 0:02:49.8]} 14. Qa4 {[%clk
0:02:55.1]} 14... Qxa4 {[%clk 0:02:42.8]} 15. Nxa4 {[%clk 0:02:56]} 15... Nxc4
{[%clk 0:02:18.3]} 16. Bxc4 {[%clk 0:02:51.6]} 16... b5 {[%clk 0:02:18.3]} 17.
Bb3 {[%clk 0:02:33.9]} 17... bxa4 {[%clk 0:02:13.3]} 18. Bxa4 {[%clk 0:02:34.8]}
18... Nd5 {[%clk 0:02:13.9]} 19. Rac1 {[%clk 0:02:33.3]} 19... Bb4 {[%clk
0:02:09.2]} 20. a3 {[%clk 0:02:18.1]} 20... Nxe3 {[%clk 0:02:07.1]} 21. fxe3
{[%clk 0:02:19]} 21... Bd2 {[%clk 0:02:07.5]} 22. Nxd2 {[%clk 0:02:18.4]} 22...
Rb8 {[%clk 0:02:00.9]} 23. b4 {[%clk 0:02:17.7]} 23... a5 {[%clk 0:01:59.4]} 24.
b5 {[%clk 0:02:17.2]} 24... Bd3 {[%clk 0:01:58.9]} 25. Rfd1 {[%clk 0:02:15.8]}
25... Bxb5 {[%clk 0:01:59.2]} 26. Bxb5 {[%clk 0:02:16.4]} 26... Rxb5 {[%clk
0:02:00.1]} 27. Rxc7 {[%clk 0:02:17.1]} 27... Rb2 {[%clk 0:02:00.3]} 28. Nc4
{[%clk 0:02:16.5]} 28... Rb3 {[%clk 0:01:59.2]} 29. Kf2 {[%clk 0:02:14.5]} 29...
g6 {[%clk 0:01:55.5]} 30. Rc1 {[%clk 0:02:14.3]} 30... Kg7 {[%clk 0:01:51.1]}
31. Rc5 {[%clk 0:02:12.7]} 31... Ra8 {[%clk 0:01:40.2]} 32. Kf3 {[%clk 0:02:08]}
32... Kf6 {[%clk 0:01:31.7]} 33. Rc7 {[%clk 0:02:01.7]} 33... Rab8 {[%clk
0:01:20]} 34. Ne5 {[%clk 0:02:00.7]} 34... R8b7 {[%clk 0:01:19.4]} 35. Rxb7
{[%clk 0:01:59.3]} 35... Rxb7 {[%clk 0:01:18.9]} 36. Rc5 {[%clk 0:02:00]} 36...
a4 {[%clk 0:01:04.5]} 37. Ra5 {[%clk 0:01:59.4]} 37... Rb1 {[%clk 0:01:05.4]}
38. Rxa4 {[%clk 0:01:58.3]} 38... Rf1+ {[%clk 0:01:00.7]} 39. Ke2 {[%clk
0:01:58.3]} 39... Rg1 {[%clk 0:00:59.1]} 40. Kf2 {[%clk 0:01:58.6]} 40... Rc1
{[%clk 0:00:58.6]} 41. Ra7 {[%clk 0:01:58.6]} 41... Kf5 {[%clk 0:00:59.2]} 42.
Rxf7+ {[%clk 0:01:53.5]} 42... Ke4 {[%clk 0:00:59.5]} 43. Rf4+ {[%clk
0:01:54.1]} 43... Kd5 {[%clk 0:01:00.1]} 44. Nf3 {[%clk 0:01:51.9]} 44... Ra1
{[%clk 0:00:59]} 45. e4+ {[%clk 0:01:52.8]} 45... Kc4 {[%clk 0:00:59.2]} 46. Rf7
{[%clk 0:01:53.5]} 46... Rxa3 {[%clk 0:00:59]} 47. Rxh7 {[%clk 0:01:53.9]} 47...
Kd3 {[%clk 0:00:58.1]} 48. e5 {[%clk 0:01:53.1]} 48... Ke4 {[%clk 0:00:58.5]}
49. Rf7 {[%clk 0:01:53.1]} 49... g5 {[%clk 0:00:36.4]} 50. Kg3 {[%clk
0:01:52.6]} 50... g4 {[%clk 0:00:28.8]} 51. hxg4 {[%clk 0:01:51.5]} 51... Ra2
{[%clk 0:00:29.7]} 52. g5 {[%clk 0:01:51]} 52... Ra8 {[%clk 0:00:29.4]} 53. Rf6
{[%clk 0:01:50.4]} 53... Kd5 {[%clk 0:00:28.1]} 54. Rf7 {[%clk 0:01:50.8]} 54...
Rg8 {[%clk 0:00:28.3]} 55. Rd7+ {[%clk 0:01:51.1]} 55... Ke4 {[%clk 0:00:28.2]}
56. Rd6 {[%clk 0:01:52]} 56... Kf5 {[%clk 0:00:27.7]} 57. d5 {[%clk 0:01:51.8]}
57... exd5 {[%clk 0:00:26.5]} 58. Rf6+ {[%clk 0:01:52.7]} 58... Ke4 {[%clk
0:00:26.5]} 59. e6 {[%clk 0:01:53.6]} 59... d4 {[%clk 0:00:25.1]} 60. g6 {[%clk
0:01:53.5]} 60... d3 {[%clk 0:00:25.5]} 61. e7 {[%clk 0:01:53.9]} 61... Re8
{[%clk 0:00:24.8]} 62. g7 {[%clk 0:01:53.5]} 62... d2 {[%clk 0:00:19.8]} 63.
Nxd2+ {[%clk 0:01:53.2]} 63... Ke5 {[%clk 0:00:20.4]} 64. Rf8 {[%clk 0:01:54.1]}
64... Rxe7 {[%clk 0:00:20.3]} 65. g8=Q {[%clk 0:01:53.4]} 65... Rd7 {[%clk
0:00:19.7]} 66. Qg5+ {[%clk 0:01:51.6]} 66... Kd4 {[%clk 0:00:19.1]} 67. Rf4+
{[%clk 0:01:50.7]} 67... Kc3 {[%clk 0:00:18.5]} 68. Ne4+ {[%clk 0:01:50.7]}
68... Kd3 {[%clk 0:00:18.9]} 69. Rf3+ {[%clk 0:01:50.9]} 69... Kxe4 {[%clk
0:00:17.4]} 70. Re3+ {[%clk 0:01:51.3]} 70... Kd4 {[%clk 0:00:17.4]} 71. Qe5+
{[%clk 0:01:52.2]} 71... Kc4 {[%clk 0:00:17.9]} 72. Rc3+ {[%clk 0:01:53.1]}
72... Kb4 {[%clk 0:00:18.5]} 73. Qc5+ {[%clk 0:01:53.8]} 73... Ka4 {[%clk
0:00:19.4]} 74. Ra3# {[%clk 0:01:54.7]} 1-0

[Event "*** Titled Tuesday Blitz"]
[Site "Chess.com"]
[Date "2020.04.07"]
[Round "5"]
[White "Grandmasta23"]
[Black "piscatorox"]
[Result "0-1"]
[WhiteElo "2345"]
[BlackElo "2254"]
[TimeControl "180+1"]
[EndTime "13:56:01 PDT"]
[Termination "piscatorox won on time"]

1. e4 {[%clk 0:03:00.9]} 1... d5 {[%clk 0:02:59.2]} 2. exd5 {[%clk 0:03:00.6]}
2... Nf6 {[%clk 0:02:59.7]} 3. Nf3 {[%clk 0:03:01.5]} 3... Bg4 {[%clk
0:02:58.2]} 4. d4 {[%clk 0:03:01.8]} 4... Qxd5 {[%clk 0:02:57.7]} 5. Be2 {[%clk
0:02:58.3]} 5... Nc6 {[%clk 0:02:57.9]} 6. c4 {[%clk 0:02:49.9]} 6... Qf5 {[%clk
0:02:57.3]} 7. Be3 {[%clk 0:02:44.2]} 7... O-O-O {[%clk 0:02:57.3]} 8. Nbd2
{[%clk 0:02:42.1]} 8... e5 {[%clk 0:02:39.6]} 9. d5 {[%clk 0:02:34.1]} 9... Bxf3
{[%clk 0:02:16.9]} 10. Nxf3 {[%clk 0:02:29]} 10... e4 {[%clk 0:02:04.4]} 11. Nd4
{[%clk 0:02:02.8]} 11... Bb4+ {[%clk 0:01:58.4]} 12. Kf1 {[%clk 0:01:57.9]}
12... Nxd4 {[%clk 0:01:55.7]} 13. Qxd4 {[%clk 0:01:56.1]} 13... Ng4 {[%clk
0:01:06.6]} 14. Qxa7 {[%clk 0:01:25.1]} 14... Nxe3+ {[%clk 0:01:03.9]} 15. Qxe3
{[%clk 0:01:26]} 15... b6 {[%clk 0:01:03.2]} 16. a3 {[%clk 0:01:10.2]} 16... Bc5
{[%clk 0:01:02.9]} 17. Qg3 {[%clk 0:01:10.6]} 17... h5 {[%clk 0:00:58.3]} 18. b4
{[%clk 0:01:08.6]} 18... Bd4 {[%clk 0:00:56.7]} 19. Rd1 {[%clk 0:01:06.8]} 19...
Be5 {[%clk 0:00:51.7]} 20. Qb3 {[%clk 0:00:45.2]} 20... h4 {[%clk 0:00:20.5]}
21. c5 {[%clk 0:00:42.1]} 21... Bg3 {[%clk 0:00:20.1]} 22. Ba6+ {[%clk
0:00:36.4]} 22... Kb8 {[%clk 0:00:18.9]} 23. Qe3 {[%clk 0:00:24.8]} 23... Bf4
{[%clk 0:00:15.9]} 24. Qe2 {[%clk 0:00:20.4]} 24... e3 {[%clk 0:00:16.3]} 25. f3
{[%clk 0:00:18.9]} 25... Rxd5 {[%clk 0:00:15.8]} 26. cxb6 {[%clk 0:00:15.2]}
26... cxb6 {[%clk 0:00:13.4]} 27. Rxd5 {[%clk 0:00:08.6]} 27... Qxd5 {[%clk
0:00:14.3]} 28. Bd3 {[%clk 0:00:01.9]} 28... Rd8 {[%clk 0:00:14.4]} 0-1

[Event "*** Titled Tuesday Blitz"]
[Site "Chess.com"]
[Date "2020.04.07"]
[Round "5"]
[White "Mops_2004"]
[Black "VitaliyBernadskiy"]
[Result "1-0"]
[WhiteElo "2554"]
[BlackElo "2721"]
[TimeControl "180+1"]
[EndTime "13:56:04 PDT"]
[Termination "Mops_2004 won by resignation"]

1. Nf3 {[%clk 0:03:00.9]} 1... Nf6 {[%clk 0:02:58.2]} 2. g3 {[%clk 0:03:00.7]}
2... b6 {[%clk 0:02:56.1]} 3. Bg2 {[%clk 0:03:00.3]} 3... Bb7 {[%clk 0:02:56.6]}
4. O-O {[%clk 0:02:59.4]} 4... g6 {[%clk 0:02:56.5]} 5. b3 {[%clk 0:02:59.1]}
5... Bg7 {[%clk 0:02:56.5]} 6. Bb2 {[%clk 0:02:59.2]} 6... O-O {[%clk
0:02:56.9]} 7. c4 {[%clk 0:02:58.9]} 7... e6 {[%clk 0:02:56.3]} 8. e3 {[%clk
0:02:53.3]} 8... a5 {[%clk 0:02:53.6]} 9. Nc3 {[%clk 0:02:52.6]} 9... Na6 {[%clk
0:02:53.5]} 10. d4 {[%clk 0:02:48.7]} 10... Ne4 {[%clk 0:02:52.1]} 11. Rc1
{[%clk 0:02:47.5]} 11... d6 {[%clk 0:02:49.7]} 12. Qe2 {[%clk 0:02:42.5]} 12...
Qe7 {[%clk 0:02:47.4]} 13. Rfd1 {[%clk 0:02:41.9]} 13... f5 {[%clk 0:02:43.7]}
14. Nd2 {[%clk 0:02:18.6]} 14... Nxc3 {[%clk 0:02:42.9]} 15. Bxc3 {[%clk
0:02:19.5]} 15... Bxg2 {[%clk 0:02:43.1]} 16. Kxg2 {[%clk 0:02:20.4]} 16... e5
{[%clk 0:02:41]} 17. dxe5 {[%clk 0:02:18.2]} 17... dxe5 {[%clk 0:02:40.3]} 18.
e4 {[%clk 0:02:09.9]} 18... Nc5 {[%clk 0:02:15.5]} 19. Bb2 {[%clk 0:01:48.3]}
19... Ne6 {[%clk 0:01:29.2]} 20. Nf3 {[%clk 0:01:29.3]} 20... fxe4 {[%clk
0:01:12]} 21. Qxe4 {[%clk 0:01:26.1]} 21... Qf7 {[%clk 0:00:49.1]} 22. Rc2
{[%clk 0:01:10.7]} 22... Nc5 {[%clk 0:00:48.7]} 23. Qd5 {[%clk 0:01:08.2]} 23...
Qxd5 {[%clk 0:00:47.7]} 24. Rxd5 {[%clk 0:01:05.5]} 24... e4 {[%clk 0:00:47.8]}
25. Ne1 {[%clk 0:00:50.8]} 25... Bh6 {[%clk 0:00:36.6]} 26. Ba3 {[%clk
0:00:47.6]} 26... Rf5 {[%clk 0:00:31.5]} 27. Bxc5 {[%clk 0:00:45.5]} 27... bxc5
{[%clk 0:00:31.4]} 28. Re2 {[%clk 0:00:44.3]} 28... Raf8 {[%clk 0:00:30.4]} 29.
Rxf5 {[%clk 0:00:36.3]} 29... gxf5 {[%clk 0:00:31.3]} 30. f3 {[%clk 0:00:36.5]}
30... Re8 {[%clk 0:00:22.9]} 31. fxe4 {[%clk 0:00:35.4]} 31... fxe4 {[%clk
0:00:22.4]} 32. Nd3 {[%clk 0:00:30]} 32... Bf8 {[%clk 0:00:17]} 33. Nf2 {[%clk
0:00:28.8]} 33... e3 {[%clk 0:00:16.2]} 34. Ng4 {[%clk 0:00:28.8]} 34... h5
{[%clk 0:00:12.6]} 35. Nf6+ {[%clk 0:00:27.6]} 1-0

[Event "*** Titled Tuesday Blitz"]
[Site "Chess.com"]
[Date "2020.04.07"]
[Round "5"]
[White "Rud_Makarian"]
[Black "TigrVShlyape"]
[Result "1/2-1/2"]
[WhiteElo "2620"]
[BlackElo "2845"]
[TimeControl "180+1"]
[EndTime "13:56:05 PDT"]
[Termination "Game drawn by agreement"]

1. d4 {[%clk 0:02:26.6]} 1... g6 {[%clk 0:02:57.8]} 2. c4 {[%clk 0:02:25.2]}
2... Bg7 {[%clk 0:02:57.7]} 3. Nc3 {[%clk 0:02:20.7]} 3... b6 {[%clk 0:02:54]}
4. e4 {[%clk 0:02:19.3]} 4... Bb7 {[%clk 0:02:53.5]} 5. Nf3 {[%clk 0:02:17.1]}
5... d6 {[%clk 0:02:52.8]} 6. Be2 {[%clk 0:02:14.2]} 6... Nd7 {[%clk 0:02:51.5]}
7. Be3 {[%clk 0:02:11.8]} 7... e5 {[%clk 0:02:44.9]} 8. d5 {[%clk 0:02:11.2]}
8... Ne7 {[%clk 0:02:43.7]} 9. h4 {[%clk 0:02:07.6]} 9... h6 {[%clk 0:02:42.3]}
10. h5 {[%clk 0:02:05.9]} 10... g5 {[%clk 0:02:42.2]} 11. g4 {[%clk 0:02:04.8]}
11... a5 {[%clk 0:02:24]} 12. Nd2 {[%clk 0:02:03.5]} 12... c5 {[%clk 0:02:18.3]}
13. f3 {[%clk 0:01:49.5]} 13... O-O {[%clk 0:02:15]} 14. Kf2 {[%clk 0:01:49.6]}
14... Nb8 {[%clk 0:02:11.4]} 15. b3 {[%clk 0:01:45.9]} 15... Na6 {[%clk
0:02:10.9]} 16. a3 {[%clk 0:01:46.1]} 16... Bc8 {[%clk 0:02:05.1]} 17. Bd3
{[%clk 0:01:32]} 17... Bd7 {[%clk 0:02:02.2]} 18. Qc2 {[%clk 0:01:25.6]} 18...
f6 {[%clk 0:02:01.3]} 19. Rhb1 {[%clk 0:01:11.9]} 19... Qc7 {[%clk 0:01:37.8]}
20. Nb5 {[%clk 0:01:04.4]} 20... Qb8 {[%clk 0:01:37.4]} 21. Nc3 {[%clk
0:00:53.5]} 21... Qc7 {[%clk 0:01:30.5]} 22. Nf1 {[%clk 0:00:47.7]} 22... Rfc8
{[%clk 0:01:27.1]} 23. Bd2 {[%clk 0:00:47.5]} 23... Bf8 {[%clk 0:01:26.2]} 24.
Ne3 {[%clk 0:00:47.8]} 24... Qb8 {[%clk 0:01:17.4]} 25. Rb2 {[%clk 0:00:43.4]}
25... Rc7 {[%clk 0:01:13.4]} 26. Rab1 {[%clk 0:00:43.1]} 26... Rca7 {[%clk
0:01:11.3]} 27. Ne2 {[%clk 0:00:34.7]} 27... Qd8 {[%clk 0:01:09.1]} 28. Qd1
{[%clk 0:00:29.7]} 28... Rb8 {[%clk 0:01:05.7]} 29. Nc2 {[%clk 0:00:29.3]} 29...
Rba8 {[%clk 0:01:05.5]} 30. Nc3 {[%clk 0:00:28.7]} 30... Nc8 {[%clk 0:00:59.5]}
31. Be3 {[%clk 0:00:28.6]} 31... Rb8 {[%clk 0:00:53.3]} 32. Be2 {[%clk
0:00:26.9]} 32... Rba8 {[%clk 0:00:53.4]} 33. Kg2 {[%clk 0:00:26.5]} 33... Qe8
{[%clk 0:00:51.7]} 34. Qd2 {[%clk 0:00:25.1]} 34... Qd8 {[%clk 0:00:51.7]} 35.
Kg3 {[%clk 0:00:24.3]} 35... Be7 {[%clk 0:00:51.1]} 36. Kg2 {[%clk 0:00:25.2]}
36... Bf8 {[%clk 0:00:51.5]} 37. b4 {[%clk 0:00:21.4]} 37... axb4 {[%clk
0:00:51]} 38. axb4 {[%clk 0:00:22.3]} 38... Nc7 {[%clk 0:00:47]} 39. b5 {[%clk
0:00:20.6]} 39... Ne7 {[%clk 0:00:43.9]} 40. Bd3 {[%clk 0:00:19.2]} 40... Qb8
{[%clk 0:00:43.4]} 41. Qc1 {[%clk 0:00:17.3]} 41... Ne8 {[%clk 0:00:42.3]} 42.
Ra1 {[%clk 0:00:17.2]} 42... Rxa1 {[%clk 0:00:41.1]} 43. Nxa1 {[%clk 0:00:17.5]}
43... Nc8 {[%clk 0:00:41.1]} 44. Nc2 {[%clk 0:00:17]} 44... Be7 {[%clk
0:00:40.6]} 45. Ra2 {[%clk 0:00:16.8]} 45... Rxa2 {[%clk 0:00:39.7]} 46. Nxa2
{[%clk 0:00:17.7]} 46... Qa7 {[%clk 0:00:39.9]} 47. Nc3 {[%clk 0:00:17.7]}
1/2-1/2

[Event "*** Titled Tuesday Blitz"]
[Site "Chess.com"]
[Date "2020.04.07"]
[Round "5"]
[White "Harry_Rakkel"]
[Black "Training_Day"]
[Result "0-1"]
[WhiteElo "2499"]
[BlackElo "2340"]
[TimeControl "180+1"]
[EndTime "13:56:05 PDT"]
[Termination "Training_Day won on time"]

1. d4 {[%clk 0:03:00.9]} 1... Nf6 {[%clk 0:02:59.7]} 2. c4 {[%clk 0:03:00.2]}
2... e6 {[%clk 0:03:00]} 3. Nc3 {[%clk 0:02:59.3]} 3... Bb4 {[%clk 0:02:59.2]}
4. Nf3 {[%clk 0:02:58.9]} 4... d5 {[%clk 0:02:58.5]} 5. cxd5 {[%clk 0:02:57.3]}
5... exd5 {[%clk 0:02:57.8]} 6. Bf4 {[%clk 0:02:56.4]} 6... Ne4 {[%clk 0:02:45]}
7. Qb3 {[%clk 0:02:55]} 7... Nc6 {[%clk 0:02:39.4]} 8. e3 {[%clk 0:02:47.7]}
8... g5 {[%clk 0:02:34.2]} 9. Bg3 {[%clk 0:02:41.1]} 9... h5 {[%clk 0:02:31]}
10. h4 {[%clk 0:02:19]} 10... Nxg3 {[%clk 0:02:28.8]} 11. fxg3 {[%clk
0:02:18.4]} 11... Qd6 {[%clk 0:02:15.2]} 12. Kf2 {[%clk 0:02:07.1]} 12... g4
{[%clk 0:02:14.4]} 13. Ne1 {[%clk 0:01:56.3]} 13... Bxc3 {[%clk 0:01:53.6]} 14.
Qxc3 {[%clk 0:01:54.5]} 14... Rh6 {[%clk 0:01:53.9]} 15. Nd3 {[%clk 0:01:51.8]}
15... Bf5 {[%clk 0:01:46.5]} 16. Nf4 {[%clk 0:01:50.9]} 16... O-O-O {[%clk
0:01:45]} 17. Rc1 {[%clk 0:01:49.3]} 17... Kb8 {[%clk 0:01:44.1]} 18. Bd3 {[%clk
0:01:33.7]} 18... Ne7 {[%clk 0:01:24.6]} 19. Rc2 {[%clk 0:01:31.5]} 19... Qd7
{[%clk 0:01:08.5]} 20. Rhc1 {[%clk 0:01:29.1]} 20... Rc6 {[%clk 0:00:56.2]} 21.
Qb3 {[%clk 0:01:22.7]} 21... Rxc2+ {[%clk 0:00:54.8]} 22. Rxc2 {[%clk
0:01:21.5]} 22... Bg6 {[%clk 0:00:46.6]} 23. Rc3 {[%clk 0:01:15.1]} 23... Re8
{[%clk 0:00:43.9]} 24. Bxg6 {[%clk 0:01:03.8]} 24... fxg6 {[%clk 0:00:43]} 25.
Kg1 {[%clk 0:00:49.4]} 25... c6 {[%clk 0:00:42.6]} 26. Kh2 {[%clk 0:00:49.1]}
26... Qd6 {[%clk 0:00:41.8]} 27. Qc2 {[%clk 0:00:43.3]} 27... Nf5 {[%clk
0:00:40.9]} 28. Qb3 {[%clk 0:00:37.9]} 28... Ka8 {[%clk 0:00:31.1]} 29. a4
{[%clk 0:00:34.9]} 29... a6 {[%clk 0:00:30.1]} 30. Qb6 {[%clk 0:00:20.3]} 30...
Rxe3 {[%clk 0:00:25]} 31. Rxe3 {[%clk 0:00:09.6]} 31... Nxe3 {[%clk 0:00:25.9]}
32. Kg1 {[%clk 0:00:06.1]} 32... Nf5 {[%clk 0:00:24.4]} 33. Ne2 {[%clk
0:00:04.4]} 33... Nxg3 {[%clk 0:00:20.9]} 34. Nxg3 {[%clk 0:00:02.8]} 34... Qxg3
{[%clk 0:00:21.8]} 0-1

[Event "*** Titled Tuesday Blitz"]
[Site "Chess.com"]
[Date "2020.04.07"]
[Round "5"]
[White "AndreyNeves"]
[Black "ChesterF"]
[Result "0-1"]
[WhiteElo "2192"]
[BlackElo "2492"]
[TimeControl "180+1"]
[EndTime "13:56:05 PDT"]
[Termination "ChesterF won by resignation"]

1. d4 {[%clk 0:03:00.9]} 1... Nf6 {[%clk 0:02:59.5]} 2. c4 {[%clk 0:03:00.1]}
2... e6 {[%clk 0:03:00.1]} 3. Nf3 {[%clk 0:02:58.7]} 3... d5 {[%clk 0:03:00.5]}
4. Nc3 {[%clk 0:02:57.3]} 4... Bb4 {[%clk 0:03:00.9]} 5. e3 {[%clk 0:02:55.3]}
5... O-O {[%clk 0:03:00.2]} 6. Bd3 {[%clk 0:02:55.2]} 6... b6 {[%clk 0:03:00.1]}
7. cxd5 {[%clk 0:02:50.6]} 7... exd5 {[%clk 0:02:59.8]} 8. O-O {[%clk
0:02:48.6]} 8... Bb7 {[%clk 0:03:00.1]} 9. a3 {[%clk 0:02:48.6]} 9... Bd6 {[%clk
0:03:00.2]} 10. Ne5 {[%clk 0:02:42.7]} 10... a6 {[%clk 0:02:57.1]} 11. b4 {[%clk
0:02:38]} 11... Re8 {[%clk 0:02:52.6]} 12. f4 {[%clk 0:02:30.9]} 12... c5 {[%clk
0:02:51.2]} 13. bxc5 {[%clk 0:02:27]} 13... bxc5 {[%clk 0:02:51.2]} 14. Rb1
{[%clk 0:02:25.9]} 14... Ra7 {[%clk 0:02:49.5]} 15. Qf3 {[%clk 0:02:13.9]} 15...
Nc6 {[%clk 0:02:45.1]} 16. Rxb7 {[%clk 0:02:00]} 16... Rxb7 {[%clk 0:01:28.7]}
17. Nxc6 {[%clk 0:01:57.7]} 17... Qc7 {[%clk 0:01:28.7]} 18. Ne5 {[%clk
0:01:49.6]} 18... cxd4 {[%clk 0:01:26.7]} 19. Nxd5 {[%clk 0:01:49.5]} 19... Nxd5
{[%clk 0:01:25.1]} 20. Qxd5 {[%clk 0:01:49.3]} 20... dxe3 {[%clk 0:01:18.3]} 21.
Bc4 {[%clk 0:01:22.4]} 21... Qc5 {[%clk 0:00:27.5]} 22. Qxc5 {[%clk 0:00:54.6]}
22... Bxc5 {[%clk 0:00:26.9]} 23. Re1 {[%clk 0:00:41]} 23... Rb1 {[%clk
0:00:21.5]} 24. Bxf7+ {[%clk 0:00:35]} 24... Kf8 {[%clk 0:00:20.8]} 25. Bxe8
{[%clk 0:00:30.3]} 25... e2+ {[%clk 0:00:20.4]} 26. Kh1 {[%clk 0:00:30.1]} 26...
Bf2 {[%clk 0:00:21]} 27. Nd7+ {[%clk 0:00:18.1]} 27... Kg8 {[%clk 0:00:16.6]}
28. g4 {[%clk 0:00:09.1]} 28... Bxe1 {[%clk 0:00:16]} 29. Be3 {[%clk 0:00:07.5]}
29... Bf2+ {[%clk 0:00:14.4]} 30. Kg2 {[%clk 0:00:07]} 30... Bxe3 {[%clk
0:00:14.9]} 31. f5 {[%clk 0:00:06.5]} 31... e1=Q {[%clk 0:00:15.1]} 0-1

[Event "*** Titled Tuesday Blitz"]
[Site "Chess.com"]
[Date "2020.04.07"]
[Round "5"]
[White "JacekDubiel"]
[Black "floplover"]
[Result "0-1"]
[WhiteElo "2396"]
[BlackElo "2259"]
[TimeControl "180+1"]
[EndTime "13:56:08 PDT"]
[Termination "floplover won by resignation"]

1. e4 {[%clk 0:03:00.9]} 1... c6 {[%clk 0:02:59.7]} 2. d4 {[%clk 0:03:00.7]}
2... d5 {[%clk 0:03:00.6]} 3. e5 {[%clk 0:03:01.2]} 3... Bf5 {[%clk 0:02:59.6]}
4. h4 {[%clk 0:03:00.9]} 4... h5 {[%clk 0:02:59.4]} 5. c4 {[%clk 0:02:48.6]}
5... e6 {[%clk 0:02:58.7]} 6. Nc3 {[%clk 0:02:49]} 6... Nd7 {[%clk 0:02:47.7]}
7. Nge2 {[%clk 0:02:46.4]} 7... dxc4 {[%clk 0:02:41.3]} 8. Ng3 {[%clk
0:02:46.3]} 8... Ne7 {[%clk 0:02:36.9]} 9. Bg5 {[%clk 0:02:21.8]} 9... Qb6
{[%clk 0:02:30.5]} 10. Qd2 {[%clk 0:01:52.8]} 10... c5 {[%clk 0:02:10.7]} 11.
dxc5 {[%clk 0:01:32.2]} 11... Nxc5 {[%clk 0:02:05.2]} 12. Bxc4 {[%clk 0:01:26]}
12... a6 {[%clk 0:01:55.3]} 13. O-O {[%clk 0:01:00.8]} 13... Bg4 {[%clk
0:01:24]} 14. Nce4 {[%clk 0:00:45.2]} 14... Nf5 {[%clk 0:01:17]} 15. Qf4 {[%clk
0:00:31]} 15... Nxg3 {[%clk 0:01:10.8]} 16. Nxg3 {[%clk 0:00:29.8]} 16... Nd7
{[%clk 0:00:42.8]} 17. Kh2 {[%clk 0:00:28.5]} 17... g6 {[%clk 0:00:31.6]} 18. f3
{[%clk 0:00:28.4]} 18... Bf5 {[%clk 0:00:31.5]} 19. Rad1 {[%clk 0:00:28.2]}
19... Bc5 {[%clk 0:00:27]} 20. Ne4 {[%clk 0:00:20.7]} 20... Bxe4 {[%clk
0:00:26.4]} 21. fxe4 {[%clk 0:00:20.3]} 21... Rf8 {[%clk 0:00:19.4]} 22. Bh6
{[%clk 0:00:19.6]} 22... O-O-O {[%clk 0:00:17.6]} 23. Bxf8 {[%clk 0:00:19.8]}
23... Rxf8 {[%clk 0:00:17.9]} 24. Bb3 {[%clk 0:00:17.3]} 24... Bd4 {[%clk
0:00:18.1]} 25. Qf6 {[%clk 0:00:16.6]} 25... Bxe5+ {[%clk 0:00:17.7]} 26. Qxe5
{[%clk 0:00:13.8]} 26... Nxe5 {[%clk 0:00:18.6]} 27. Rc1+ {[%clk 0:00:11.4]}
27... Kb8 {[%clk 0:00:18.5]} 28. Rfd1 {[%clk 0:00:12.3]} 28... Ng4+ {[%clk
0:00:18.4]} 29. Kg3 {[%clk 0:00:12.1]} 29... Qf2+ {[%clk 0:00:18.2]} 30. Kh3
{[%clk 0:00:11.9]} 30... Qf4 {[%clk 0:00:18.3]} 31. g3 {[%clk 0:00:11.4]} 31...
Qf2 {[%clk 0:00:18.2]} 32. Rc2 {[%clk 0:00:11.9]} 32... Qf3 {[%clk 0:00:17.9]}
33. Rc3 {[%clk 0:00:11.3]} 33... Qxe4 {[%clk 0:00:16.3]} 34. Rf1 {[%clk
0:00:11.1]} 34... Rc8 {[%clk 0:00:14]} 35. Bc2 {[%clk 0:00:11.2]} 35... Qxc2
{[%clk 0:00:13]} 36. Rxc2 {[%clk 0:00:11]} 36... Rxc2 {[%clk 0:00:13.9]} 0-1